fUSD/lending_fUSD_20260309
["ID","MTS","AMOUNT","RATE_DAILY","PERIOD"]
[408029820,1773052238334,-500.0,0.00019673,2]
[408029821,1773052238343,-500.0,0.00019673,2]
[408029822,1773052238353,-500.0,0.00019673,2]
[408029823,1773052238363,-150.0,0.00019673,2]
[408029824,1773052238377,-150.0,0.00019673,2]
[408029825,1773052238388,-150.0,0.00019673,2]
[408029826,1773052238398,-500.0,0.00019673,2]
[408029827,1773052238407,-766.0,0.00019673,2]
[408029828,1773052238419,-500.0,0.00019673,2]
[408029829,1773052238428,-1330.0,0.0001968,2]
[408029830,1773052238438,-2000.0,0.000197,2]
[408029831,1773052238449,-1000.0,0.00019726,2]
[408029832,1773052238458,-500.0,0.00019727,2]
[408029833,1773052238468,-500.0,0.00019727,2]
[408029834,1773052238477,-500.0,0.00019728,2]
[408029835,1773052238487,-150.0,0.00019728,2]
[408029836,1773052238496,-1059.0,0.00019728,2]
[408029837,1773052238505,-200.0,0.00019728,2]
[408029838,1773052238515,-467.0,0.00019728,2]
[408029839,1773052238524,-277.09096331,0.00019728,2]
[408029840,1773052238533,-1184.0,0.00019728,2]
[408029841,1773052238544,-500.0,0.00019728,2]
[408029842,1773052238553,-550.0,0.00019728,2]
[408029843,1773052238562,-593.0,0.00019728,2]
[408029844,1773052238571,-150.0,0.00019728,2]
[408029845,1773052238581,-500.0,0.00019728,2]
[408029846,1773052238590,-500.0,0.00019728,2]
[408029847,1773052238600,-577.0,0.00019728,2]
[408029848,1773052238609,-150.0,0.00019728,2]
[408029849,1773052238618,-500.0,0.00019728,2]
[408029850,1773052238628,-646.01614418,0.00019728,2]
[408029851,1773052238637,-500.0,0.00019728,2]
[408029852,1773052238647,-150.0,0.00019728,2]
[408029853,1773052238656,-500.0,0.00019728,2]
[408029854,1773052238667,-766.0,0.00019728,2]
[408029855,1773052238676,-500.0,0.00019728,2]
[408029856,1773052238686,-689.48379761,0.00019745,2]
[408029857,1773052238696,-689.48379761,0.00019765,2]
[408029858,1773052238705,-267.1,0.00019777,2]
[408029859,1773052238715,-500.0,0.00019783,2]
[408029860,1773052238724,-1059.0,0.00019783,2]
[408029861,1773052238733,-467.0,0.00019783,2]
[408029862,1773052238742,-1184.0,0.00019783,2]
[408029863,1773052238751,-550.0,0.00019783,2]
[408029864,1773052238761,-593.0,0.00019783,2]
[408029865,1773052238771,-285.50154825,0.00019783,2]
[408029866,1773052238780,-500.0,0.00019783,2]
[408029867,1773052238788,-500.0,0.00019783,2]
[408029868,1773052238797,-577.0,0.00019783,2]
[408029869,1773052238806,-200.0,0.00019783,2]
[408029870,1773052238815,-500.0,0.00019783,2]
[408029871,1773052238824,-500.0,0.00019783,2]
[408029872,1773052238833,-150.0,0.00019783,2]
[408029873,1773052238843,-500.0,0.00019783,2]
[408029874,1773052238852,-766.0,0.00019783,2]
[408029875,1773052238861,-500.0,0.00019783,2]
[408029876,1773052238870,-689.48379761,0.00019784,2]
[408029877,1773052238879,-250.0,0.00019785,2]
[408029878,1773052238888,-772.2074,0.0001979,2]
[408029879,1773052238897,-2500.0,0.0001979,2]
[408029880,1773052238906,-1219.47897218,0.00019799,2]
[408029881,1773052238916,-1806.21705418,0.000198,2]
[408029882,1773052238925,-1521.61011,0.000198,2]
[408029883,1773052238934,-2000.0,0.000198,2]
[408029884,1773052238944,-689.48379761,0.00019803,2]
[408029885,1773052238953,-387.4542566,0.00019805,2]
[408029886,1773052238962,-500.0,0.00019809,2]
[408029887,1773052238971,-250.0,0.0001981,2]
[408029888,1773052238981,-709.0,0.00019811,2]
[408029889,1773052238990,-487.0,0.00019811,2]
[408029890,1773052238999,-487.0,0.00019811,2]
[408029891,1773052239008,-487.0,0.00019811,2]
[408029892,1773052239017,-487.0,0.00019811,2]
[408029893,1773052239027,-487.0,0.00019811,2]
[408029894,1773052239038,-487.0,0.00019811,2]
[408029895,1773052239047,-487.0,0.00019811,2]
[408029896,1773052239056,-805.24,0.00019811,2]
[408029897,1773052239065,-1806.21705417,0.00019811,2]
[408029898,1773052239074,-1219.47897214,0.00019813,2]
[408029899,1773052239084,-1806.21705417,0.00019822,2]
[408029900,1773052239093,-689.48379761,0.00019823,2]
[408029901,1773052239102,-3338.397,0.00019826,2]
[408029902,1773052239111,-181.737,0.00019826,2]
[408029903,1773052239120,-1219.47897214,0.00019828,2]
[408029904,1773052239131,-1806.21705417,0.00019833,2]
[408029905,1773052239140,-500.0,0.00019836,2]
[408029906,1773052239150,-500.0,0.00019837,2]
[408029907,1773052239160,-1059.0,0.00019837,2]
[408029908,1773052239170,-467.0,0.00019837,2]
[408029909,1773052239179,-1184.0,0.00019837,2]
[408029910,1773052239188,-593.0,0.00019837,2]
[408029911,1773052239198,-500.0,0.00019837,2]
[408029912,1773052239207,-500.0,0.00019837,2]
[408029913,1773052239217,-577.0,0.00019837,2]
[408029914,1773052239226,-536.99459924,0.00019837,2]
[408029915,1773052239237,-202.35755136,0.00019837,2]
[408029916,1773052239246,-500.0,0.00019837,2]
[408029917,1773052239254,-500.0,0.00019837,2]
[408029918,1773052239263,-766.0,0.00019837,2]
[408029919,1773052239274,-500.0,0.00019837,2]
[408029920,1773052239283,-709.0,0.0001984,2]
[408029921,1773052239294,-689.48379761,0.00019842,2]
[408029923,1773052239304,-1219.47897214,0.00019842,2]
[408029924,1773052239313,-250.0,0.00019844,2]
[408029925,1773052239322,-1806.21705417,0.00019844,2]
[408029926,1773052239331,-250.0,0.0001985,2]
[408029927,1773052239341,-1521.61011,0.0001985,2]
[408029928,1773052239350,-1806.21705417,0.00019856,2]
[408029929,1773052239360,-1219.47897214,0.00019857,2]
[408029930,1773052239372,-689.48379761,0.00019861,2]
[408029931,1773052239381,-1269.0,0.00019867,2]
[408029932,1773052239390,-1806.21705417,0.00019867,2]
[408029933,1773052239399,-184.22758356,0.00019867,2]
[408029934,1773052239408,-1219.47897214,0.00019871,2]
[408029935,1773052239418,-1806.21705417,0.00019878,2]
[408029936,1773052239427,-2880.29,0.00019878,2]
[408029937,1773052239436,-4909.7,0.00019878,2]
[408029938,1773052239447,-689.48379761,0.00019881,2]
[408029939,1773052239456,-1219.47897214,0.00019886,2]
[408029941,1773052239465,-1806.21705417,0.00019889,2]
[408029942,1773052239475,-267.1,0.00019889,2]
[408029943,1773052239484,-26977.9872,0.0001989,2]
[408029944,1773052239495,-500.0,0.00019892,2]
[408029945,1773052239504,-1059.0,0.00019892,2]
[408029946,1773052239515,-467.0,0.00019892,2]
[408029947,1773052239525,-1184.0,0.00019892,2]
[408029948,1773052239533,-593.0,0.00019892,2]
[408029949,1773052239543,-500.0,0.00019892,2]
[408029950,1773052239552,-500.0,0.00019892,2]
[408029951,1773052239562,-577.0,0.00019892,2]
[408029952,1773052239571,-500.0,0.00019892,2]
[408029953,1773052239580,-500.0,0.00019892,2]
[408029954,1773052239590,-766.0,0.00019892,2]
[408029955,1773052239599,-500.0,0.00019892,2]
[408029956,1773052239608,-8911.7834,0.00019899,2]
[408029957,1773052239617,-500.0,0.00019899,2]
[408029959,1773052239626,-500.0,0.00019899,2]
[408029960,1773052239635,-500.0,0.00019899,2]
[408029962,1773052239646,-500.0,0.00019899,2]
[408029963,1773052239654,-500.0,0.00019899,2]
[408029964,1773052239664,-500.0,0.00019899,2]
[408029965,1773052239674,-500.0,0.00019899,2]
[408029966,1773052239683,-500.0,0.00019899,2]
[408029967,1773052239693,-500.0,0.00019899,2]
[408029968,1773052239702,-506.82131153,0.00019899,2]
[408029969,1773052239712,-500.0,0.00019899,2]
[408029970,1773052239722,-502.32320781,0.00019899,2]
[408029971,1773052239732,-500.0,0.00019899,2]
[408029972,1773052239741,-500.0,0.00019899,2]
[408029973,1773052239750,-500.0,0.00019899,2]
[408029974,1773052239759,-151405.9606,0.000199,2]
[408029975,1773052239768,-32918.3967,0.000199,2]
[408029976,1773052239777,-305.35814968,0.000199,2]
[408029977,1773052239786,-689.48379761,0.000199,2]
[408029978,1773052239794,-250.0,0.000199,3]
[408029979,1773052239803,-2000.0,0.000199,2]
[408029980,1773052239812,-1806.21705417,0.000199,2]
[408029981,1773052239821,-967.1067069,0.000199,2]
[408029982,1773052239830,-1219.47897214,0.000199,2]
[408029983,1773052239840,-1521.61011,0.000199,2]
[408029984,1773052239849,-2702.39283208,0.000199,2]
[408029985,1773052239859,-3859.29187061,0.000199,2]
[408029986,1773052239868,-709.0,0.00019942,2]
[408029987,1773052239877,-500.0,0.00019947,2]
[408029988,1773052239886,-1059.0,0.00019947,2]
[408029989,1773052239895,-467.0,0.00019947,2]
[408029990,1773052239905,-1184.0,0.00019947,2]
[408029991,1773052239917,-593.0,0.00019947,2]
[408029992,1773052239928,-500.0,0.00019947,2]
[408029993,1773052239937,-500.0,0.00019947,2]
[408029994,1773052239947,-577.0,0.00019947,2]
[408029995,1773052239956,-500.0,0.00019947,2]
[408029996,1773052239965,-500.0,0.00019947,2]
[408029997,1773052239973,-766.0,0.00019947,2]
[408029998,1773052239983,-500.0,0.00019947,2]
[408029999,1773052239992,-250.0,0.00019947,3]
[408030000,1773052240001,-1521.61011,0.0001995,2]
[408030001,1773052240011,-323.77109867,0.00019973,2]
[408030002,1773052240020,-500.0,0.00019973,2]
[408030003,1773052240030,-501.66559118,0.00019973,2]
[408030004,1773052240039,-500.0,0.00019973,2]
[408030005,1773052240048,-500.0,0.00019973,2]
[408030006,1773052240058,-3664.0,0.00019973,2]
[408030007,1773052240067,-500.0,0.00019973,2]
[408030008,1773052240077,-500.0,0.00019973,2]
[408030009,1773052240087,-250.0,0.0001998,3]
[408030010,1773052240096,-150.0,0.00019982,30]
[408030011,1773052240106,-500.0,0.00019982,2]
[408030012,1773052240115,-9517.1806452,0.00019989,2]
[408030013,1773052240124,-3595.2892664,0.00019989,2]
[408030014,1773052240132,-10672.5813356,0.00019989,2]
[408030015,1773052240142,-9253.8807672,0.00019989,2]
[408030016,1773052240151,-500.0,0.00019989,2]
[408030017,1773052240160,-91871.5884903,0.00019989,2]
[408030018,1773052240170,-3136.1063685,0.00019989,2]
[408030019,1773052240179,-14155.6518809,0.00019989,2]
[408030020,1773052240188,-2010.334445,0.00019989,2]
[408030021,1773052240197,-1279.0,0.0001999,2]
[408030022,1773052240206,-150.0,0.0001999,2]
[408030023,1773052240215,-1213.0,0.0001999,2]
[408030024,1773052240224,-922.0,0.0001999,2]
[408030025,1773052240234,-1042.0,0.0001999,2]
[408030026,1773052240243,-547.70819797,0.0001999,2]
[408030027,1773052240252,-547.70819797,0.0001999,2]
[408030028,1773052240261,-547.70819797,0.0001999,2]
[408030030,1773052240270,-1342.0,0.0001999,2]
[408030032,1773052240279,-175.3,0.00019997,2]
[408030034,1773052240288,-500.0,0.00019999,2]
[408030036,1773052240297,-500.0,0.00019999,2]
[408030038,1773052240306,-500.0,0.00019999,2]
[408030039,1773052240315,-500.0,0.00019999,2]
[408030040,1773052240324,-500.0,0.00019999,2]
[408030041,1773052240333,-500.0,0.00019999,2]
[408030042,1773052240344,-500.0,0.00019999,2]
[408030043,1773052240353,-500.0,0.00019999,2]
[408030044,1773052240363,-500.0,0.00019999,2]
[408030045,1773052240374,-500.0,0.00019999,2]
[408030046,1773052240387,-504.66308381,0.00019999,2]
[408030047,1773052240396,-500.0,0.00019999,2]
[408030048,1773052240406,-500.0,0.00019999,2]
[408030049,1773052240414,-500.0,0.00019999,2]
[408030050,1773052240425,-504.92020981,0.00019999,2]
[408030051,1773052240433,-500.0,0.00019999,2]
[408030052,1773052240442,-500.0,0.00019999,2]
[408030053,1773052240453,-500.0,0.00019999,2]
[408030054,1773052240462,-500.0,0.00019999,2]
[408030055,1773052240471,-500.0,0.00019999,2]
[408030056,1773052240479,-500.0,0.00019999,2]
[408030057,1773052240488,-500.0,0.00019999,2]
[408030058,1773052240497,-500.0,0.00019999,2]
[408030059,1773052240505,-517.33931831,0.00019999,2]
[408030060,1773052240514,-463.4000001,0.00019999,2]
[408030061,1773052240523,-500.0,0.00019999,2]
[408030062,1773052240531,-500.0,0.00019999,2]
[408030063,1773052240540,-500.0,0.00019999,2]
[408030064,1773052240549,-500.0,0.00019999,2]
[408030065,1773052240557,-350.0,0.00019999,2]
[408030066,1773052240566,-350.0,0.00019999,2]
[408030067,1773052240575,-303.46587356,0.00019999,2]
[408030068,1773052240584,-500.0,0.00019999,2]
[408030069,1773052240595,-500.0,0.00019999,2]
[408030070,1773052240604,-500.0,0.00019999,2]
[408030071,1773052240614,-500.0,0.00019999,2]
[408030072,1773052240623,-500.0,0.00019999,2]
[408030073,1773052240633,-1048.80405627,0.00019999,5]
[408030074,1773052240643,-500.0,0.00019999,2]
[408030075,1773052240652,-500.0,0.00019999,2]
[408030076,1773052240662,-615.85034056,0.00019999,2]
[408030077,1773052240672,-500.0,0.00019999,2]
[408030078,1773052240681,-500.0,0.00019999,2]
[408030079,1773052240690,-437.89413426,0.00019999,2]
[408030080,1773052240699,-500.0,0.00019999,2]
[408030081,1773052240708,-307.72142625,0.00019999,2]
[408030082,1773052240717,-294.9535777,0.00019999,2]
[408030083,1773052240726,-306.76678934,0.00019999,2]
[408030084,1773052240735,-500.0,0.00019999,2]
[408030085,1773052240744,-533.41629745,0.00019999,2]
[408030086,1773052240752,-500.0,0.00019999,2]
[408030087,1773052240762,-270.04221902,0.00019999,2]
[408030088,1773052240771,-500.0,0.00019999,2]
[408030089,1773052240782,-157.17841319,0.00019999,2]
[408030090,1773052240792,-1585.0,0.0002,2]
[408030091,1773052240803,-18919.2125589,0.0002,2]
[408030092,1773052241251,-342.6365587,0.00019789,2]
[408030093,1773052241260,-738908.25748709,0.0002,2]
[408030094,1773052241274,-500.0,0.00019789,2]
[408030095,1773052241283,-1384.79207001,0.0002,2]
[408030096,1773052241294,-26317.43658238,0.0002,2]
[408030097,1773052241305,-6275.44125084,0.0002,2]
[408030098,1773052241315,-781.98517676,0.0002,2]
[408030106,1773052245485,-619.0,0.0001939,2]
[408030107,1773052245494,-6320.0722492,0.0002,2]
[408030108,1773052280973,500.0,0.00016824,2]
[408030109,1773052449681,185.24,0.00014,2]
[408030110,1773052642038,5000.01,0.00016894,2]
[408030111,1773052642059,2529.49,0.00016894,2]
[408030112,1773052756761,416.13,0.00015471,2]
[408030113,1773052779046,515.72,0.00015471,2]
[408030114,1773052934058,181.12,0.00014,2]
[408030115,1773053077688,1164.06,0.0001513,2]
[408030116,1773053182552,200.0,0.00016894,2]
[408030118,1773053409926,177.31,0.00014,2]
[408030129,1773053431629,-514.0,0.00017,2]
[408030131,1773053431639,-486.0,0.00017,2]
[408030133,1773053431650,-19.0,0.00017,2]
[408030135,1773053431660,-294.0,0.00017,2]
[408030137,1773053431670,-309.23045292,0.00017418,2]
[408030140,1773053431681,-600.0,0.00017418,2]
[408030142,1773053431691,-3424.61,0.00017731,2]
[408030144,1773053431699,-162.22,0.00017837,2]
[408030146,1773053431709,-177.31,0.000179,2]
[408030148,1773053431721,-1500.0,0.00017919,2]
[408030150,1773053431734,-410.81,0.00018007,2]
[408030151,1773053431743,-512.64364203,0.00018282,2]
[408030152,1773053431751,-277.0,0.00018355,2]
[408030153,1773053431762,-1200.0,0.00018355,2]
[408030154,1773053431771,-500.0,0.00018356,7]
[408030155,1773053431780,-500.0,0.00018356,7]
[408030156,1773053431790,-702.63,0.00018382,2]
[408030157,1773053431802,-172.84,0.00018398,2]
[408030158,1773053431811,-512.643642,0.00018413,2]
[408030159,1773053431823,-610.12074509,0.00018452,2]
[408030160,1773053431832,-270.0,0.00018534,2]
[408030161,1773053431841,-512.643642,0.00018543,2]
[408030163,1773053431852,-162.08,0.00018615,2]
[408030164,1773053431862,-512.643642,0.00018674,2]
[408030165,1773053431871,-200.0,0.000187,2]
[408030166,1773053431880,-642.97646691,0.000187,2]
[408030167,1773053431889,-2500.0,0.000187,2]
[408030168,1773053431899,-195.0,0.000187,2]
[408030169,1773053431908,-607.96568004,0.000187,2]
[408030170,1773053431918,-195.0,0.000187,2]
[408030171,1773053431927,-600.0,0.000187,2]
[408030172,1773053431937,-300.0,0.000187,2]
[408030173,1773053431946,-195.0,0.000187,2]
[408030174,1773053432216,-250.0,0.000187,2]
[408030175,1773053432228,-217.46711665,0.000187,2]
[408030176,1773053432238,-3240.0,0.00018717,2]
[408030177,1773053432247,-154.66,0.00018771,2]
[408030178,1773053432256,-358.61700199,0.00018771,2]
[408030179,1773053432267,-32918.3967,0.00018774,2]
[408030180,1773053432277,-2500.0,0.00018774,2]
[408030181,1773053432288,-834.24,0.00018787,2]
[408030182,1773053432299,-153.072796,0.00018807,3]
[408030183,1773053432310,-1733.15133254,0.00018807,2]
[408030184,1773053432321,-5000.0,0.00018824,2]
[408030185,1773053432332,-514.0,0.00018853,3]
[408030186,1773053432342,-500.0,0.00018862,2]
[408030187,1773053432352,-500.0,0.00018862,2]
[408030188,1773053432361,-500.0,0.00018862,2]
[408030189,1773053432371,-500.0,0.00018862,2]
[408030190,1773053432380,-500.0,0.00018862,2]
[408030191,1773053432389,-500.0,0.00018862,2]
[408030192,1773053432400,-500.0,0.00018862,2]
[408030193,1773053432411,-500.0,0.00018862,2]
[408030194,1773053432421,-500.0,0.00018862,2]
[408030195,1773053432432,-151.0,0.00018862,2]
[408030196,1773053432442,-500.0,0.00018862,2]
[408030197,1773053432452,-151.0,0.00018862,2]
[408030198,1773053432462,-500.0,0.00018862,2]
[408030199,1773053432473,-151.0,0.00018862,2]
[408030200,1773053432483,-500.0,0.00018862,2]
[408030201,1773053432493,-151.0,0.00018862,2]
[408030202,1773053432505,-500.0,0.00018862,2]
[408030203,1773053432514,-151.0,0.00018862,2]
[408030204,1773053432523,-500.0,0.00018862,2]
[408030205,1773053432532,-151.0,0.00018862,2]
[408030206,1773053432543,-500.0,0.00018862,2]
[408030207,1773053432553,-151.0,0.00018862,2]
[408030208,1773053432564,-500.0,0.00018862,2]
[408030209,1773053432572,-151.0,0.00018862,2]
[408030210,1773053432581,-500.0,0.00018862,2]
[408030211,1773053432591,-151.0,0.00018862,2]
[408030212,1773053432600,-495.74462624,0.00018862,2]
[408030213,1773053432609,-151.0,0.00018862,2]
[408030214,1773053432618,-151.0,0.00018862,2]
[408030215,1773053432637,-151.0,0.00018862,2]
[408030216,1773053432646,-151.0,0.00018862,2]
[408030217,1773053432656,-151.0,0.00018862,2]
[408030218,1773053432665,-151.0,0.00018862,2]
[408030219,1773053432674,-151.0,0.00018862,2]
[408030220,1773053432684,-151.0,0.00018862,2]
[408030221,1773053432693,-151.0,0.00018862,2]
[408030222,1773053432703,-151.0,0.00018862,2]
[408030223,1773053432713,-500.0,0.00018873,2]
[408030224,1773053432727,-500.0,0.00018873,2]
[408030225,1773053432739,-500.0,0.00018873,2]
[408030226,1773053432749,-500.0,0.00018873,2]
[408030227,1773053432759,-500.0,0.00018873,2]
[408030228,1773053432770,-500.0,0.00018873,2]
[408030229,1773053432779,-15006.96610288,0.00018874,2]
[408030230,1773053432792,-919.94278436,0.00018874,2]
[408030231,1773053432808,-346.78041754,0.00018874,2]
[408030232,1773053432888,-22517.73381744,0.00018874,2]
[408030233,1773053432900,-835.60817854,0.00018874,2]
[408030234,1773053432915,-456.50541151,0.00018874,2]
[408030235,1773053432926,-501.0,0.00018874,2]
[408030236,1773053432938,-346.84803172,0.00018874,2]
[408030237,1773053432949,-1445.03891421,0.00018874,2]
[408030238,1773053432960,-2351.54804654,0.00018874,2]
[408030239,1773053437710,-500.0,0.00018356,7]
[408030240,1773053437722,-10.40022984,0.00018763,2]
[408030241,1773053437735,-157.59977016,0.00018763,2]
[408030242,1773053437744,-482.2001122,0.00018873,2]
[408030243,1773053437758,-17.7998878,0.00018873,2]
[408030244,1773053437769,-1421.68509123,0.00018874,2]
[408030245,1773053437796,-196149.08210403,0.00018874,2]
[408030246,1773053437806,-410.81,0.00018907,2]
[408030247,1773053437815,-1733.15133247,0.00018928,2]
[408030248,1773053437825,-1600.0,0.00018965,2]
[408030249,1773053437834,-500.0,0.00018999,2]
[408030250,1773053437843,-250.55,0.00018999,2]
[408030251,1773053437853,-174.61919141,0.00018999,2]
[408030252,1773053437862,-290.26104003,0.00018999,2]
[408030253,1773053437873,-262.90206542,0.00018999,2]
[408030254,1773053437882,-503.02681123,0.00019,2]
[408030255,1773053437892,-200.0,0.0001902,2]
[408030256,1773053437901,-1733.15133247,0.0001905,2]
[408030257,1773053437912,-168.0,0.00019055,2]
[408030258,1773053437922,-1733.15133247,0.00019171,2]
[408030259,1773053437933,-1000.0,0.00019178,2]
[408030260,1773053437943,-168.0,0.00019283,2]
[408030261,1773053437953,-500.0,0.0001929,2]
[408030262,1773053437962,-1733.15133247,0.00019293,2]
[408030263,1773053437972,-168.0,0.00019332,2]
[408030264,1773053437981,-153.42726249,0.00019399,2]
[408030265,1773053437991,-665.0,0.0001941,2]
[408030266,1773053438000,-1733.15133247,0.00019414,2]
[408030267,1773053438009,-161.77924979,0.00019425,2]
[408030268,1773053438019,-900.0,0.00019432,2]
[408030269,1773053438028,-168.0,0.00019434,2]
[408030270,1773053438038,-172.87392778,0.00019452,2]
[408030271,1773053438048,-500.0,0.00019452,7]
[408030272,1773053438057,-500.0,0.00019452,7]
[408030273,1773053438067,-1000.0,0.00019452,2]
[408030274,1773053438076,-2000.0,0.000195,2]
[408030275,1773053438085,-1733.15133247,0.00019536,2]
[408030277,1773053438095,-181.08010149,0.00019547,2]
[408030278,1773053438104,-301.00069851,0.00019547,2]
[408030280,1773053438113,-500.0,0.00019563,2]
[408030282,1773053438123,-150.10489082,0.00019563,2]
[408030284,1773053438132,-150.0,0.00019563,2]
[408030286,1773053438141,-500.0,0.00019563,2]
[408030288,1773053438150,-500.0,0.00019563,2]
[408030291,1773053438159,-500.0,0.00019563,2]
[408030293,1773053438169,-150.0,0.00019563,2]
[408030295,1773053438177,-150.0,0.00019563,2]
[408030297,1773053438186,-500.0,0.00019563,2]
[408030299,1773053438195,-150.0,0.00019563,2]
[408030301,1773053438205,-500.0,0.00019563,2]
[408030302,1773053438214,-175.07643417,0.000196,2]
[408030303,1773053438223,-500.0,0.00019618,2]
[408030304,1773053438233,-150.0,0.00019618,2]
[408030305,1773053438242,-500.0,0.00019618,2]
[408030306,1773053438251,-500.0,0.00019618,2]
[408030308,1773053438260,-500.0,0.00019618,2]
[408030309,1773053438270,-500.0,0.00019618,2]
[408030310,1773053438279,-500.0,0.00019618,2]
[408030311,1773053438288,-162.22,0.00019621,2]
[408030312,1773053438297,-1000.0,0.00019628,2]
[408030313,1773053438305,-1733.15133247,0.00019657,2]
[408030314,1773053438314,-256.0,0.0001967,5]
[408030315,1773053438323,-151.0,0.00019671,2]
[408030316,1773053438332,-255.47740234,0.00019673,2]
[408030317,1773053438341,-236.99459924,0.00019673,2]
[408030318,1773053438350,-500.0,0.00019673,2]
[408030319,1773053438359,-500.0,0.00019673,2]
[408030320,1773053438369,-500.0,0.00019673,2]
[408030321,1773053438378,-500.0,0.00019673,2]
[408030322,1773053438387,-500.0,0.00019673,2]
[408030323,1773053438396,-500.0,0.00019673,2]
[408030324,1773053438405,-200.0,0.00019673,2]
[408030325,1773053438415,-150.0,0.00019673,2]
[408030326,1773053438424,-176.2,0.00019673,2]
[408030327,1773053438434,-500.0,0.00019673,2]
[408030328,1773053438443,-150.0,0.00019673,2]
[408030329,1773053438452,-1144.0,0.00019673,2]
[408030330,1773053438461,-500.0,0.00019673,2]
[408030331,1773053438470,-516.0,0.00019673,2]
[408030332,1773053438479,-150.0,0.00019673,2]
[408030333,1773053438488,-217.87375586,0.00019673,2]
[408030334,1773053438497,-244.99040052,0.00019673,2]
[408030335,1773053438506,-150.0,0.00019673,2]
[408030336,1773053438515,-150.0,0.00019673,2]
[408030337,1773053438525,-500.0,0.00019673,2]
[408030338,1773053438534,-802.0,0.00019673,2]
[408030339,1773053438543,-1604.0,0.00019673,2]
[408030340,1773053438552,-500.0,0.00019673,2]
[408030341,1773053438561,-500.0,0.00019673,2]
[408030342,1773053438571,-500.0,0.00019673,2]
[408030343,1773053438580,-908.0,0.00019673,2]
[408030344,1773053438589,-500.0,0.00019673,2]
[408030345,1773053438599,-150.0,0.00019673,2]
[408030346,1773053438608,-720.0,0.00019673,2]
[408030347,1773053438618,-150.0,0.00019673,2]
[408030348,1773053438627,-500.0,0.00019673,2]
[408030349,1773053438636,-500.0,0.00019673,2]
[408030350,1773053438646,-457.0,0.00019673,2]
[408030351,1773053438657,-2946.52206413,0.000197,2]
[408030352,1773053438668,-201.10239433,0.00019711,5]
[408030353,1773053438678,-269.11907877,0.00019726,2]
[408030354,1773053438687,-1000.0,0.00019726,2]
[408030355,1773053438697,-500.0,0.00019727,2]
[408030356,1773053438707,-500.0,0.00019727,2]
[408030357,1773053438718,-500.0,0.00019727,2]
[408030358,1773053438733,-500.0,0.00019727,2]
[408030359,1773053438744,-500.0,0.00019727,2]
[408030360,1773053438754,-500.0,0.00019728,2]
[408030361,1773053438765,-500.0,0.00019728,2]
[408030362,1773053438775,-1144.0,0.00019728,2]
[408030363,1773053438784,-500.0,0.00019728,2]
[408030364,1773053438795,-516.0,0.00019728,2]
[408030365,1773053438805,-150.0,0.00019728,2]
[408030366,1773053438815,-150.0,0.00019728,2]
[408030367,1773053438827,-500.0,0.00019728,2]
[408030368,1773053438837,-1604.0,0.00019728,2]
[408030369,1773053438848,-802.0,0.00019728,2]
[408030370,1773053438857,-500.0,0.00019728,2]
[408030371,1773053438867,-500.0,0.00019728,2]
[408030372,1773053438876,-500.0,0.00019728,2]